[Event "34rd NATO Championship 2024"]
[Site "Rhodes"]
[Date "2024.10.21"]
[Round "1.29"]
[White "Hof - Van Run, Rieke"]
[Black "Bouchard, Pier-Alex"]
[Result "*"]
[ECO "B03"]
[WhiteElo "2038"]
[BlackElo "1818"]
[Annotator "RC"]
[PlyCount "30"]
[EventDate "2024.09.18"]
[EventType "swiss"]
[EventCountry "GRE"]
[SourceTitle "playchess.com"]
[Source "ChessBase"]
[SourceQuality "1"]
[TimeControl "5400+30"]

1. e4 {[%emt 0:00:03]} Nf6 {[%emt 0:00:18]} 2. e5 {[%emt 0:00:31]} Nd5 {[%emt 0:00:30]} 3. c4 {[%emt 0:00:30]} Nb6 {[%emt 0:00:30]} 4. Nc3 {[%emt 0:00:30]} d6 {[%emt 0:01:23]} 5. exd6 {[%emt 0:02:19]} exd6 {[%emt 0:01:56]} 6. d4 {[%emt 0:02:17]} c6 {[%emt 0:05:26]} 7. Nf3 {[%emt 0:06:17]} Be7 {[%emt 0:08:09]} 8. Bd3 {[%emt 0:05:10]} Be6 {[%emt 0:02:53]} 9. b3 {[%emt 0:01:27]} N6d7 {[%emt 0:01:24]} 10. Qc2 {[%emt 0:00:30]} h6 {[%emt 0:00:30]} 11. O-O {[%emt 0:00:30]} O-O {[%emt 0:00:30]} 12. Bf4 {[%emt 0:00:30]} Bf6 {[%emt 0:00:30]} 13. Rae1 {[%emt 0:00:30]} Re8 {[%emt 0:00:30]} 14. Bh7+ {[%emt 0:00:30]} Kh8 {[%emt 0:00:30]} 15. Bf5 {[%emt 0:00:30]} Nf8 {[%emt 0:00:30]} *

[Event "34rd NATO Championship 2024"]
[Site "Rhodes"]
[Date "2024.10.21"]
[Round "1.29"]
[White "Hof - Van Run, Rieke"]
[Black "Bouchard, Pier-Alex"]
[Result "1-0"]
[ECO "B03"]
[WhiteElo "2038"]
[BlackElo "1818"]
[Annotator "RC"]
[PlyCount "101"]
[EventDate "2024.09.18"]
[EventType "swiss"]
[EventCountry "GRE"]
[SourceTitle "playchess.com"]
[Source "ChessBase"]
[SourceQuality "1"]
[TimeControl "5400+30"]

1. e4 {[%emt 0:00:03]} Nf6 {[%emt 1:31:00]} 2. e5 Nd5 3. c4 Nb6 {[%emt 0:00:00]} 4. Nc3 {[%emt 0:01:31]} d6 {[%emt 0:00:00]} 5. exd6 {[%emt 0:02:19]} exd6 {[%emt 0:00:00]} 6. d4 {[%emt 0:02:17]} c6 {[%emt 0:00:00]} 7. Nf3 {[%emt 0:06:17]} Be7 {[%emt 0:00:00]} 8. Bd3 {[%emt 0:05:10]} Be6 {[%emt 0:00:00]} 9. b3 {[%emt 0:01:27]} d5 {[%emt 0:00:00]} 10. c5 {[%emt 0:00:30]} N6d7 {[%emt 0:00:00]} 11. Qc2 {[%emt 0:00:30]} h6 {[%emt 0:00:00]} 12. O-O {[%emt 0:00:30]} O-O {[%emt 0:00:00]} 13. Bf4 {[%emt 0:00:30]} Bf6 {[%emt 0:00:00]} 14. Rae1 {[%emt 0:00:30]} Re8 {[%emt 0:00:00]} 15. Bh7+ {[%emt 0:00:30]} Kh8 {[%emt 0:00:00]} 16. Bf5 {[%emt 0:00:30]} Nf8 {[%emt 0:00:00]} 17. Ne5 {[%emt 0:00:30]} Bxe5 {[%emt 0:00:00]} 18. Bxe5 {[%emt 0:00:30]} Nbd7 {[%emt 0:00:00]} 19. Bd6 {[%emt 0:00:30]} Bxf5 {[%emt 0:00:00]} 20. Qxf5 {[%emt 0:00:30]} Qf6 {[%emt 0:00:00]} 21. Qg4 {[%emt 0:00:30]} Ne6 {[%emt 0:00:00]} 22. Rd1 {[%emt 0:00:30]} Ndf8 {[%emt 0:00:00]} 23. f4 {[%emt 0:00:30]} Kg8 {[%emt 0:00:00]} 24. h4 {[%emt 0:00:30]} g6 {[%emt 0:00:00]} 25. f5 {[%emt 0:00:30]} Ng7 {[%emt 0:00:00]} 26. Be5 {[%emt 0:00:30]} Rxe5 {[%emt 0:00:00]} 27. dxe5 {[%emt 0:00:30]} Qxe5 {[%emt 0:00:00]} 28. Na4 {[%emt 0:00:30]} Nxf5 {[%emt 0:00:00]} 29. Rde1 {[%emt 0:00:30]} Qf6 {[%emt 0:00:00]} 30. h5 {[%emt 0:00:30]} Qg5 {[%emt 0:00:00]} 31. Qxg5 {[%emt 0:00:30]} hxg5 {[%emt 0:00:00]} 32. hxg6 {[%emt 0:00:30]} fxg6 {[%emt 0:00:00]} 33. g4 {[%emt 0:00:30]} Ng3 {[%emt 0:00:00]} 34. Rf3 {[%emt 0:00:30]} Ne4 {[%emt 0:00:00]} 35. b4 {[%emt 0:00:30]} Ne6 {[%emt 0:00:00]} 36. Nc3 {[%emt 0:00:30]} Nd4 {[%emt 0:00:00]} 37. Rd3 {[%emt 0:00:30]} Nd2 {[%emt 0:00:00]} 38. Kg2 {[%emt 0:00:30]} Rf8 {[%emt 0:00:00]} 39. Re7 {[%emt 0:00:30]} N4f3 {[%emt 0:00:00]} 40. Kh3 {[%emt 0:00:30]} Ng1+ {[%emt 0:00:00]} 41. Kg3 {[%emt 0:00:30]} Ngf3 {[%emt 0:00:00]} 42. Rxb7 {[%emt 0:00:30]} Nf1+ {[%emt 0:00:00]} 43. Kh3 {[%emt 0:00:30]} d4 {[%emt 0:00:00]} 44. Ne4 {[%emt 0:00:30]} Ne1 {[%emt 0:00:00]} 45. Ra3 {[%emt 0:00:30]} d3 {[%emt 0:00:00]} 46. Nxg5 {[%emt 0:00:30]} d2 {[%emt 0:00:00]} 47. Rd7 {[%emt 0:00:30]} Rf2 {[%emt 0:00:00]} 48. Rd8+ {[%emt 0:00:30]} Kg7 {[%emt 0:00:00]} 49. Rxa7+ {[%emt 0:00:30]} Kh6 {[%emt 0:00:00]} 50. Nf7+ {[%emt 0:00:30]} Rxf7 {[%emt 0:00:00]} 51. Rxf7 {[%emt 0:00:30]} 1-0

[Event "34rd NATO Championship 2024"]
[Site "Rhodes"]
[Date "2024.10.21"]
[Round "1.30"]
[White "Anghel, Iulian-Mihai"]
[Black "Nielsen, Jan Mose"]
[Result "0-1"]
[ECO "C02"]
[WhiteElo "2164"]
[BlackElo "2036"]
[Annotator "RC"]
[PlyCount "110"]
[EventDate "2024.09.18"]
[EventType "swiss"]
[EventCountry "GRE"]
[SourceTitle "playchess.com"]
[Source "ChessBase"]
[SourceQuality "1"]
[TimeControl "5400+30"]

1. e4 {[%emt 0:00:04]} c5 {[%emt 0:00:10]} 2. c3 {[%emt 0:00:28]} e6 {[%emt 0:01:47]} 3. d4 {[%emt 0:00:16]} d5 {[%emt 0:00:52]} 4. e5 {[%emt 0:04:49]} Nc6 {[%emt 0:01:31]} 5. Nf3 {[%emt 0:03:28]} Bd7 {[%emt 0:05:45]} 6. Bd3 {[%emt 0:00:39]} Be7 {[%emt 0:02:00]} 7. O-O {[%emt 0:05:40]} g5 {[%emt 0:07:16]} 8. Be3 {[%emt 0:31:21]} h5 {[%emt 0:01:45]} 9. Na3 {[%emt 0:14:54]} c4 {[%emt 0:04:54]} 10. Bc2 {[%emt 0:02:29]} g4 {[%emt 0:06:58]} 11. Ne1 {[%emt 0:00:52]} Bxa3 {[%emt 0:02:29]} 12. bxa3 {[%emt 0:00:21]} Qa5 {[%emt 0:02:55]} 13. Qd2 {[%emt 0:03:34]} Qxa3 {[%emt 0:06:29]} 14. Bg5 {[%emt 0:01:02]} Nce7 {[%emt 0:00:51]} 15. f3 {[%emt 0:01:15]} Nf5 {[%emt 0:12:11]} 16. fxg4 {[%emt 0:01:29]} hxg4 {[%emt 0:04:19]} 17. Bxf5 {[%emt 0:06:01]} exf5 {[%emt 0:00:06]} 18. Nc2 {[%emt 0:00:18]} Qa6 {[%emt 0:00:08]} 19. Ne3 {[%emt 0:01:19]} Qg6 {[%emt 0:00:09]} 20. Nxd5 {[%emt 0:01:24]} Rc8 {[%emt 0:05:52]} 21. Rae1 {[%emt 0:06:08]} Rh5 {[%emt 0:09:27]} 22. Bf4 {[%emt 0:05:13]} Kf8 {[%emt 0:02:45]} 23. Qb2 {[%emt 0:01:56]} Qc6 {[%emt 0:00:44]} 24. Qb4+ {[%emt 0:02:12]} Kg7 {[%emt 0:00:10]} 25. Ne3 {[%emt 0:01:43]} Be6 {[%emt 0:01:08]} 26. Rb1 {[%emt 0:01:14]} b6 {[%emt 0:00:22]} 27. Qd6 {[%emt 0:00:32]} Qa8 {[%emt 0:00:51]} 28. d5 {[%emt 0:00:11]} Rd8 {[%emt 0:00:37]} 29. Qc7 {[%emt 0:01:40]} Bxd5 {[%emt 0:02:34]} 30. Rbd1 {[%emt 0:00:57]} Rc8 {[%emt 0:00:09]} 31. Qd6 {[%emt 0:01:12]} Be6 {[%emt 0:00:16]} 32. Rd4 {[%emt 0:00:16]} Qc6 {[%emt 0:00:48]} 33. Qa3 {[%emt 0:00:07]} a5 {[%emt 0:02:19]} 34. Rfd1 {[%emt 0:00:01]} Qc7 {[%emt 0:05:41]} 35. Nxc4 {[%emt 0:02:02]} Bxc4 {[%emt 0:00:36]} 36. e6 {[%emt 0:00:15]} Qc5 {[%emt 0:00:34]} 37. Qxc5 {[%emt 0:00:27]} Rxc5 {[%emt 0:00:08]} 38. e7 {[%emt 0:00:07]} Nxe7 {[%emt 0:00:15]} 39. Bd6 {[%emt 0:00:02]} Rc6 {[%emt 0:01:57]} 40. Bxe7 {[%emt 0:00:04]} Bxa2 {[%emt 0:00:31]} 41. Rd6 {[%emt 0:00:59]} Rh6 {[%emt 0:01:14]} 42. R6d3 {[%emt 0:01:24]} Rhe6 {[%emt 0:01:01]} 43. Ba3 {[%emt 0:00:15]} Re2 {[%emt 0:01:48]} 44. R1d2 {[%emt 0:01:10]} Rxd2 {[%emt 0:03:40]} 45. Rxd2 {[%emt 0:00:01]} Bb1 {[%emt 0:00:16]} 46. Bb2 {[%emt 0:00:07]} Kg6 {[%emt 0:00:42]} 47. Kf2 {[%emt 0:00:14]} Re6 {[%emt 0:00:23]} 48. Rd5 {[%emt 0:01:03]} Ba2 {[%emt 0:00:12]} 49. Rd4 {[%emt 0:00:11]} b5 {[%emt 0:00:08]} 50. Rd8 {[%emt 0:01:21]} Bc4 {[%emt 0:00:11]} 51. Rd2 {[%emt 0:00:06]} f4 {[%emt 0:02:37]} 52. Ba3 {[%emt 0:00:15]} Re3 {[%emt 0:00:30]} 53. Bb2 {[%emt 0:00:08]} Rd3 {[%emt 0:00:29]} 54. Rc2 {[%emt 0:00:27]} Rd1 {[%emt 0:00:18]} 55. Ba3 {[%emt 0:00:59]} Rf1# {[%emt 0:00:04]} 0-1

[Event "34rd NATO Championship 2024"]
[Site "Rhodes"]
[Date "2024.10.21"]
[Round "1.31"]
[White "Wells, Daniel J"]
[Black "Coulon, Dominic"]
[Result "1-0"]
[ECO "B12"]
[WhiteElo "2036"]
[BlackElo "1813"]
[Annotator "RC"]
[PlyCount "45"]
[EventDate "2024.09.18"]
[EventType "swiss"]
[EventCountry "GRE"]
[SourceTitle "playchess.com"]
[Source "ChessBase"]
[SourceQuality "1"]
[TimeControl "5400+30"]

1. e4 {[%emt 0:00:04]} c6 {[%emt 0:00:08]} 2. d4 {[%emt 0:00:07]} d5 {[%emt 0:00:10]} 3. e5 {[%emt 0:00:10]} g6 {[%emt 0:00:16]} 4. Nf3 {[%emt 0:03:26]} Bg4 {[%emt 0:00:56]} 5. Nbd2 {[%emt 0:01:16]} e6 {[%emt 0:01:31]} 6. h3 {[%emt 0:00:26]} Bxf3 {[%emt 0:00:09]} 7. Nxf3 {[%emt 0:00:13]} Nd7 {[%emt 0:01:53]} 8. Be2 {[%emt 0:00:18]} h5 {[%emt 0:00:18]} 9. O-O {[%emt 0:01:58]} Nh6 {[%emt 0:00:49]} 10. Bg5 {[%emt 0:03:17]} Qb6 {[%emt 0:00:28]} 11. Qd2 {[%emt 0:03:34]} Nf5 {[%emt 0:01:20]} 12. c3 {[%emt 0:08:06]} c5 {[%emt 0:02:36]} 13. c4 {[%emt 0:09:50]} cxd4 {[%emt 0:04:36]} 14. cxd5 {[%emt 0:01:13]} Bb4 {[%emt 0:00:54]} 15. Qf4 {[%emt 0:03:40]} Be7 {[%emt 0:08:31]} 16. Bxe7 {[%emt 0:11:12]} Nxe7 {[%emt 0:01:42]} 17. dxe6 {[%emt 0:07:48]} Qxe6 {[%emt 0:02:24]} 18. Rac1 {[%emt 0:04:57]} Nc6 {[%emt 0:21:11]} 19. Bc4 {[%emt 0:04:41]} Qf5 {[%emt 0:03:35]} 20. Qxf5 {[%emt 0:01:14]} gxf5 {[%emt 0:00:06]} 21. Bb5 {[%emt 0:01:10]} Rh6 {[%emt 0:00:42]} 22. Bxc6 {[%emt 0:02:47]} bxc6 {[%emt 0:00:35]} 23. Nxd4 {[%emt 0:01:00]} 1-0

[Event "34rd NATO Championship 2024"]
[Site "Rhodes"]
[Date "2024.10.21"]
[Round "1.32"]
[White "Echavarria Hidalgo, Fernando"]
[Black "Hadzicki, Tomasz"]
[Result "0-1"]
[ECO "C41"]
[WhiteElo "1802"]
[BlackElo "2034"]
[Annotator "RC"]
[PlyCount "84"]
[EventDate "2024.09.18"]
[EventType "swiss"]
[EventCountry "GRE"]
[SourceTitle "playchess.com"]
[Source "ChessBase"]
[SourceQuality "1"]
[TimeControl "5400+30"]

1. e4 {[%emt 1:31:00]} d6 {[%emt 1:31:00]} 2. d4 {[%emt 0:00:00]} Nf6 {[%emt 0:00:00]} 3. Nc3 {[%emt 0:00:00]} Nbd7 {[%emt 0:00:00]} 4. Nf3 {[%emt 0:00:00]} e5 {[%emt 0:00:00]} 5. dxe5 {[%emt 0:00:00]} dxe5 {[%emt 0:00:00]} 6. Bc4 {[%emt 0:00:00]} Bc5 {[%emt 0:00:00]} 7. O-O {[%emt 0:00:00]} c6 {[%emt 0:00:00]} 8. Bg5 {[%emt 0:00:00]} Qc7 {[%emt 0:00:00]} 9. a3 {[%emt 0:00:00]} b5 {[%emt 0:00:00]} 10. Ba2 {[%emt 0:00:00]} O-O {[%emt 0:00:00]} 11. Qe2 {[%emt 0:00:00]} h6 {[%emt 0:00:00]} 12. Bh4 {[%emt 0:00:00]} Nh5 {[%emt 0:00:00]} 13. Nd2 {[%emt 0:00:00]} Nf4 {[%emt 0:00:00]} 14. Qf3 {[%emt 0:00:00]} Ng6 {[%emt 0:00:00]} 15. Bg3 {[%emt 0:00:00]} Nf6 {[%emt 0:00:00]} 16. h3 {[%emt 0:00:00]} Be6 {[%emt 0:00:00]} 17. Bxe6 {[%emt 0:00:00]} fxe6 {[%emt 0:00:00]} 18. Qe2 {[%emt 0:00:00]} Rad8 {[%emt 0:00:00]} 19. Nb3 {[%emt 0:00:00]} Bb6 {[%emt 0:00:00]} 20. Rad1 {[%emt 0:00:00]} h5 {[%emt 0:00:00]} 21. Rxd8 {[%emt 0:00:00]} Rxd8 {[%emt 0:00:00]} 22. Rd1 {[%emt 0:00:00]} Rf8 {[%emt 0:00:00]} 23. Kh1 {[%emt 0:00:00]} a5 {[%emt 0:00:00]} 24. f3 {[%emt 0:00:00]} h4 {[%emt 0:00:00]} 25. Bf2 {[%emt 0:00:00]} Nh5 {[%emt 0:00:00]} 26. Qe1 {[%emt 0:00:00]} Bxf2 {[%emt 0:00:00]} 27. Qxf2 {[%emt 0:00:00]} Ng3+ {[%emt 0:00:00]} 28. Kh2 {[%emt 0:00:00]} b4 {[%emt 0:00:00]} 29. axb4 {[%emt 0:00:00]} axb4 {[%emt 0:00:00]} 30. Nc5 {[%emt 0:00:00]} bxc3 {[%emt 0:00:00]} 31. Nxe6 {[%emt 0:00:00]} Qf7 {[%emt 0:00:09]} 32. Nxf8 {[%emt 0:00:00]} Qxf8 {[%emt 0:00:14]} 33. Qb6 {[%emt 0:00:00]} Qf4 {[%emt 0:01:11]} 34. bxc3 {[%emt 0:00:00]} Kh7 {[%emt 0:03:23]} 35. Kg1 {[%emt 0:02:34]} Qg5 {[%emt 0:02:29]} 36. Re1 {[%emt 0:01:22]} Qd2 {[%emt 0:00:43]} 37. Qf2 {[%emt 0:02:57]} Qxc3 {[%emt 0:00:21]} 38. Kh2 {[%emt 0:01:47]} Qc4 {[%emt 0:02:52]} 39. Kg1 {[%emt 0:01:37]} Nf4 {[%emt 0:00:13]} 40. Kh2 {[%emt 0:00:43]} c5 {[%emt 0:01:11]} 41. Re3 {[%emt 0:04:39]} Qd4 {[%emt 0:00:23]} 42. Qe1 {[%emt 0:00:54]} Qxe3 {[%emt 0:00:21]} 0-1

[Event "34rd NATO Championship 2024"]
[Site "Rhodes"]
[Date "2024.10.21"]
[Round "1.33"]
[White "Aagaard, Gert"]
[Black "Ross, David C"]
[Result "1/2-1/2"]
[ECO "A48"]
[WhiteElo "2029"]
[BlackElo "1788"]
[Annotator "RC"]
[PlyCount "66"]
[EventDate "2024.09.18"]
[EventType "swiss"]
[EventCountry "GRE"]
[SourceTitle "playchess.com"]
[Source "ChessBase"]
[SourceQuality "1"]
[TimeControl "5400+30"]

1. d4 {[%emt 0:00:03]} Nf6 {[%emt 0:00:31]} 2. Nf3 {[%emt 0:00:10]} g6 {[%emt 0:00:22]} 3. Bg5 {[%emt 0:00:16]} Ne4 {[%emt 0:00:59]} 4. Bf4 {[%emt 0:00:10]} d5 {[%emt 0:01:39]} 5. Nbd2 {[%emt 0:01:33]} Bg7 {[%emt 0:03:36]} 6. c3 {[%emt 0:01:11]} c5 {[%emt 0:02:35]} 7. e3 {[%emt 0:01:49]} Qb6 {[%emt 0:03:49]} 8. Qc1 {[%emt 0:01:39]} Nc6 {[%emt 0:06:11]} 9. h3 {[%emt 0:00:56]} O-O {[%emt 0:06:11]} 10. Nxe4 {[%emt 0:01:26]} dxe4 {[%emt 0:00:32]} 11. Nd2 {[%emt 0:00:20]} cxd4 {[%emt 0:04:16]} 12. exd4 {[%emt 0:01:56]} f5 {[%emt 0:08:42]} 13. Be2 {[%emt 0:05:12]} Bd7 {[%emt 0:04:08]} 14. Nc4 {[%emt 0:05:50]} Qd8 {[%emt 0:01:30]} 15. O-O {[%emt 0:02:10]} Rc8 {[%emt 0:05:10]} 16. Rd1 {[%emt 0:08:19]} b5 {[%emt 0:07:17]} 17. d5 {[%emt 0:04:53]} Nb8 {[%emt 0:09:11]} 18. Ne5 {[%emt 0:07:45]} Qb6 {[%emt 0:04:39]} 19. Qd2 {[%emt 0:04:19]} Rfd8 {[%emt 0:05:26]} 20. c4 {[%emt 0:07:50]} Be8 {[%emt 0:04:44]} 21. b4 {[%emt 0:10:53]} bxc4 {[%emt 0:11:09]} 22. Nxc4 {[%emt 0:02:52]} Qf6 {[%emt 0:02:16]} 23. Rac1 {[%emt 0:07:37]} Nc6 {[%emt 0:01:23]} 24. Bg5 {[%emt 0:04:03]} Qf8 {[%emt 0:02:01]} 25. b5 {[%emt 0:04:42]} Nd4 {[%emt 0:00:45]} 26. d6 {[%emt 0:01:07]} Nxe2+ {[%emt 0:02:15]} 27. Qxe2 {[%emt 0:00:06]} Bf6 {[%emt 0:00:52]} 28. dxe7 {[%emt 0:03:14]} Rxd1+ {[%emt 0:01:00]} 29. Qxd1 {[%emt 0:00:15]} Qxe7 {[%emt 0:00:24]} 30. Bxf6 {[%emt 0:01:23]} Qxf6 {[%emt 0:00:01]} 31. a4 {[%emt 0:00:50]} Rd8 {[%emt 0:00:30]} 32. Qe2 {[%emt 0:00:41]} Qd4 {[%emt 0:00:24]} 33. Ne3 {[%emt 0:04:22]} Qxa4 {[%emt 0:00:59]} 1/2-1/2

[Event "34rd NATO Championship 2024"]
[Site "Rhodes"]
[Date "2024.10.21"]
[Round "1.34"]
[White "Ulusoy, Mustafa"]
[Black "Nilsson, Erik"]
[Result "1/2-1/2"]
[ECO "A84"]
[WhiteElo "1785"]
[BlackElo "2028"]
[Annotator "RC"]
[PlyCount "36"]
[EventDate "2024.09.18"]
[EventType "swiss"]
[EventCountry "GRE"]
[SourceTitle "playchess.com"]
[Source "ChessBase"]
[SourceQuality "1"]
[TimeControl "5400+30"]

1. d4 {[%emt 0:00:06]} f5 {[%emt 0:00:08]} 2. Nf3 {[%emt 0:02:15]} Nf6 {[%emt 0:00:09]} 3. e3 {[%emt 0:00:32]} e6 {[%emt 0:01:23]} 4. c4 {[%emt 0:00:46]} Bb4+ {[%emt 0:01:20]} 5. Bd2 {[%emt 0:00:30]} Qe7 {[%emt 0:02:42]} 6. a3 {[%emt 0:01:38]} Bxd2+ {[%emt 0:00:11]} 7. Nbxd2 {[%emt 0:01:34]} a5 {[%emt 0:00:45]} 8. Bd3 {[%emt 0:00:24]} b6 {[%emt 0:00:45]} 9. Rc1 {[%emt 0:02:36]} Na6 {[%emt 0:01:53]} 10. O-O {[%emt 0:05:23]} O-O {[%emt 0:00:49]} 11. Re1 {[%emt 0:01:28]} Bb7 {[%emt 0:01:19]} 12. e4 {[%emt 0:07:10]} fxe4 {[%emt 0:01:15]} 13. Nxe4 {[%emt 0:00:29]} Nxe4 {[%emt 0:04:59]} 14. Bxe4 {[%emt 0:01:07]} Bxe4 {[%emt 0:01:03]} 15. Rxe4 {[%emt 0:00:37]} Rf6 {[%emt 0:01:37]} 16. Qc2 {[%emt 0:05:15]} Raf8 {[%emt 0:07:26]} 17. Rh4 {[%emt 0:02:36]} h6 {[%emt 0:00:25]} 18. Rh3 {[%emt 0:00:36]} d6 {[%emt 0:07:16]} 1/2-1/2

[Event "34rd NATO Championship 2024"]
[Site "Rhodes"]
[Date "2024.10.21"]
[Round "1.35"]
[White "Tommasini, Enzo"]
[Black "Stuhr, Finn"]
[Result "1-0"]
[ECO "A04"]
[WhiteElo "2026"]
[BlackElo "1790"]
[Annotator "RC"]
[PlyCount "65"]
[EventDate "2024.09.18"]
[EventType "swiss"]
[EventCountry "GRE"]
[SourceTitle "playchess.com"]
[Source "ChessBase"]
[SourceQuality "1"]
[TimeControl "5400+30"]

1. Nf3 {[%emt 0:00:05]} b6 {[%emt 0:01:06]} 2. g3 {[%emt 0:00:16]} Bb7 {[%emt 0:00:11]} 3. Bg2 {[%emt 0:00:14]} g6 {[%emt 0:00:43]} 4. c4 {[%emt 0:00:44]} Bg7 {[%emt 0:00:12]} 5. O-O {[%emt 0:00:18]} e6 {[%emt 0:00:05]} 6. Nc3 {[%emt 0:00:50]} Ne7 {[%emt 0:00:28]} 7. d4 {[%emt 0:03:07]} d6 {[%emt 0:00:17]} 8. e4 {[%emt 0:01:05]} Nd7 {[%emt 0:00:11]} 9. Re1 {[%emt 0:02:36]} O-O {[%emt 0:00:17]} 10. Bg5 {[%emt 0:00:58]} f6 {[%emt 0:01:05]} 11. Be3 {[%emt 1:25:47]} Rc8 {[%emt 0:01:17]} 12. Bh3 {[%emt 0:00:00]} f5 {[%emt 0:01:32]} 13. Ng5 {[%emt 0:00:00]} Rf6 {[%emt 0:01:44]} 14. d5 {[%emt 0:00:00]} exd5 {[%emt 0:06:20]} 15. exd5 {[%emt 0:00:00]} c5 {[%emt 0:05:43]} 16. Ne6 {[%emt 0:00:00]} Qe8 {[%emt 0:00:11]} 17. Nb5 {[%emt 0:00:00]} Ne5 {[%emt 0:01:43]} 18. Nxd6 {[%emt 0:00:00]} Qd7 {[%emt 0:00:38]} 19. Nxc8 {[%emt 0:00:00]} Nxc8 {[%emt 0:03:01]} 20. Nxg7 {[%emt 0:00:00]} Qxg7 {[%emt 0:01:45]} 21. Bg5 {[%emt 0:00:00]} Re6 {[%emt 0:00:26]} 22. Re3 {[%emt 0:00:00]} Re8 {[%emt 0:02:36]} 23. f4 {[%emt 0:00:00]} h6 {[%emt 0:02:23]} 24. Rxe5 {[%emt 0:00:00]} Rxe5 {[%emt 0:00:25]} 25. fxe5 {[%emt 0:00:00]} hxg5 {[%emt 0:00:09]} 26. Qe2 {[%emt 0:00:00]} Ne7 {[%emt 0:01:53]} 27. Rd1 {[%emt 0:00:00]} Bc8 {[%emt 0:05:49]} 28. Bg2 {[%emt 0:00:00]} Kf8 {[%emt 0:03:11]} 29. d6 {[%emt 0:00:00]} Ng8 {[%emt 0:00:03]} 30. e6 {[%emt 0:00:00]} Nf6 {[%emt 0:00:32]} 31. d7 {[%emt 0:00:00]} Bxd7 {[%emt 0:00:09]} 32. exd7 {[%emt 0:00:00]} Nxd7 {[%emt 0:00:03]} 33. Qe6 {[%emt 0:00:00]} 1-0

[Event "34rd NATO Championship 2024"]
[Site "Rhodes"]
[Date "2024.10.21"]
[Round "1.36"]
[White "Papler, Peter"]
[Black "Loving, Jason"]
[Result "0-1"]
[ECO "D02"]
[WhiteElo "1780"]
[BlackElo "2021"]
[Annotator "RC"]
[PlyCount "60"]
[EventDate "2024.09.18"]
[EventType "swiss"]
[EventCountry "GRE"]
[SourceTitle "playchess.com"]
[Source "ChessBase"]
[SourceQuality "1"]
[TimeControl "5400+30"]

1. d4 {[%emt 0:00:24]} Nf6 {[%emt 0:00:06]} 2. Nc3 {[%emt 0:00:26]} d5 {[%emt 0:00:06]} 3. Bf4 {[%emt 0:00:24]} Bf5 {[%emt 0:01:37]} 4. Nf3 {[%emt 0:02:28]} e6 {[%emt 0:01:36]} 5. e3 {[%emt 0:00:59]} c5 {[%emt 0:01:41]} 6. Nb5 {[%emt 0:02:59]} Na6 {[%emt 0:01:00]} 7. c3 {[%emt 0:00:37]} Be7 {[%emt 0:02:37]} 8. h3 {[%emt 0:02:39]} O-O {[%emt 0:00:26]} 9. Be2 {[%emt 0:03:04]} Qb6 {[%emt 0:01:22]} 10. a4 {[%emt 0:00:25]} Rfc8 {[%emt 0:00:38]} 11. Nh4 {[%emt 0:03:28]} Be4 {[%emt 0:00:21]} 12. Bh2 {[%emt 0:04:11]} Nb8 {[%emt 0:00:54]} 13. Nf3 {[%emt 0:02:08]} Nc6 {[%emt 0:00:53]} 14. Qd2 {[%emt 0:02:10]} cxd4 {[%emt 0:01:41]} 15. exd4 {[%emt 0:00:37]} Na5 {[%emt 0:00:43]} 16. Qg5 {[%emt 0:04:59]} a6 {[%emt 0:00:36]} 17. Bc7 {[%emt 0:06:39]} Rxc7 {[%emt 0:02:24]} 18. Nxc7 {[%emt 0:00:09]} Qxc7 {[%emt 0:00:13]} 19. O-O {[%emt 0:00:09]} Rc8 {[%emt 0:00:40]} 20. Ne5 {[%emt 0:05:07]} Nb3 {[%emt 0:00:42]} 21. Ra2 {[%emt 0:00:55]} Bc2 {[%emt 0:01:34]} 22. Qf4 {[%emt 0:02:01]} Bd6 {[%emt 0:00:44]} 23. Qe3 {[%emt 0:01:18]} Bxe5 {[%emt 0:01:28]} 24. dxe5 {[%emt 0:00:32]} Nd7 {[%emt 0:00:08]} 25. f4 {[%emt 0:00:18]} Qc5 {[%emt 0:00:25]} 26. Kf2 {[%emt 0:00:56]} d4 {[%emt 0:00:31]} 27. cxd4 {[%emt 0:00:27]} Nxd4 {[%emt 0:00:15]} 28. b4 {[%emt 0:02:57]} Qxb4 {[%emt 0:01:27]} 29. Rc1 {[%emt 0:00:24]} Nf5 {[%emt 0:07:19]} 30. Qa7 {[%emt 0:02:56]} Qxf4+ {[%emt 0:00:21]} 0-1

[Event "34rd NATO Championship 2024"]
[Site "Rhodes"]
[Date "2024.10.21"]
[Round "1.37"]
[White "Duren, Andrew"]
[Black "Kries, Yvon"]
[Result "1-0"]
[ECO "D00"]
[WhiteElo "2015"]
[BlackElo "1765"]
[Annotator "RC"]
[PlyCount "59"]
[EventDate "2024.09.18"]
[EventType "swiss"]
[EventCountry "GRE"]
[SourceTitle "playchess.com"]
[Source "ChessBase"]
[SourceQuality "1"]
[TimeControl "5400+30"]

1. d4 {[%emt 0:00:09]} d5 {[%emt 0:00:12]} 2. Bf4 {[%emt 0:00:08]} c5 {[%emt 0:01:17]} 3. e3 {[%emt 0:00:08]} Nc6 {[%emt 0:00:37]} 4. c3 {[%emt 0:00:16]} Bf5 {[%emt 0:02:50]} 5. Qb3 {[%emt 0:01:46]} Qd7 {[%emt 0:04:42]} 6. Nf3 {[%emt 0:01:00]} f6 {[%emt 0:03:09]} 7. Bg3 {[%emt 0:05:27]} c4 {[%emt 0:06:54]} 8. Qd1 {[%emt 0:00:12]} g5 {[%emt 0:05:38]} 9. h3 {[%emt 0:02:22]} h5 {[%emt 0:01:32]} 10. b3 {[%emt 0:00:59]} b5 {[%emt 0:02:15]} 11. a4 {[%emt 0:01:38]} Na5 {[%emt 0:03:11]} 12. Nbd2 {[%emt 0:01:06]} Rc8 {[%emt 0:06:52]} 13. axb5 {[%emt 0:07:21]} Qxb5 {[%emt 0:02:50]} 14. bxc4 {[%emt 0:01:55]} dxc4 {[%emt 0:05:27]} 15. Qa4 {[%emt 0:04:06]} Qxa4 {[%emt 0:04:08]} 16. Rxa4 {[%emt 0:00:08]} Nb3 {[%emt 0:06:07]} 17. Bxc4 {[%emt 0:02:19]} Nxd2 {[%emt 0:04:12]} 18. Nxd2 {[%emt 0:03:29]} Ra8 {[%emt 0:05:13]} 19. Ke2 {[%emt 0:02:35]} h4 {[%emt 0:01:48]} 20. Bh2 {[%emt 0:03:26]} g4 {[%emt 0:00:37]} 21. Ra5 {[%emt 0:02:10]} Bd7 {[%emt 0:01:55]} 22. hxg4 {[%emt 0:01:23]} Bxg4+ {[%emt 0:00:26]} 23. f3 {[%emt 0:00:22]} Bd7 {[%emt 0:07:54]} 24. Rha1 {[%emt 0:03:06]} e6 {[%emt 0:02:14]} 25. Rxa7 {[%emt 0:04:06]} Rxa7 {[%emt 0:01:34]} 26. Rxa7 {[%emt 0:00:05]} f5 {[%emt 0:01:14]} 27. Be5 {[%emt 0:00:37]} Rh6 {[%emt 0:02:03]} 28. e4 {[%emt 0:01:48]} h3 {[%emt 0:00:23]} 29. gxh3 {[%emt 0:00:52]} Rxh3 {[%emt 0:00:18]} 30. exf5 {[%emt 0:01:42]} 1-0